bitfinex-derivatives/quotes_SOLF0:USTF0_20240830
["timestamp","ask_amount","ask_price","bid_price","bid_amount"]
[1724998809945,11.11,138.11,138.09,3.66962388]
[1724998810554,0.04903099,138.12,138.09,3.66962388]
[1724998810746,0.04903099,138.12,138.1,3.6202]
[1724998815450,0.04903099,138.12,138.11,3.6201]
[1724998815652,1.4035,138.21,138.11,11.11]
[1724998815851,11.11,138.18,138.12,11.11]
[1724998816053,11.11,138.18,138.13,3.58384013]
[1724998816362,11.11,138.18,138.14,3.6191]
[1724998816861,0.05222728,138.17,138.15,0.04707501]
[1724998818451,14.78072728,138.17,138.15,0.04707501]
[1724998818652,11.11,138.16,138.15,0.04707501]
[1724998819158,3.6192,138.15,138.11,3.6199]
[1724998819349,11.11,138.14,138.11,3.6199]
[1724998820154,11.16439816,138.14,138.11,3.66746708]
[1724998820562,0.05439816,138.14,138.11,3.66746708]
[1724998820859,0.05439816,138.14,138.12,3.6198]
[1724998823059,0.05439816,138.14,138.13,14.7295]
[1724998825059,12.4542,138.2,138.16,3.6187]
[1724998825259,11.11,138.2,138.16,3.6187]
[1724998826167,0.05491015,138.19,138.17,0.05342543]
[1724998826565,0.05491015,138.19,138.17,3.67182543]
[1724998826767,0.05491015,138.19,138.17,0.05342543]
[1724998827162,0.05491015,138.19,138.18,3.6182]
[1724998827463,0.05491015,138.19,138.18,14.7282]
[1724998835868,12.4181,138.27,138.22,11.11]
[1724998836067,1.3081,138.27,138.22,11.11]
[1724998836274,13.8082,138.29,138.23,11.11]
[1724998836476,11.11,138.28,138.21,19.90556359]
[1724998836778,0.05508419,138.26,138.23,0.05549556]
[1724998837071,0.05508419,138.26,138.23,3.67239556]
[1724998838368,0.05508419,138.26,138.24,3.6166]
[1724998838572,0.05508419,138.26,138.23,0.05549556]
[1724998840373,0.05508419,138.26,138.23,3.67239556]
[1724998840682,0.05508419,138.26,138.23,11.16549556]
[1724998841680,0.05508419,138.26,138.24,3.6165]
[1724998842475,0.05508419,138.26,138.25,14.7264]
[1724998843067,3.615,138.31,138.26,3.6161]
[1724998843371,3.615,138.31,138.26,11.11]
[1724998843573,3.615,138.31,138.27,3.6159]
[1724998843869,3.615,138.31,138.26,11.11]
[1724998844171,0.04978892,138.3,138.27,0.05467485]
[1724998844472,11.11,138.29,138.27,0.05467485]
[1724998845380,14.7255,138.29,138.27,0.05467485]
[1724998848981,0.04978892,138.3,138.27,0.05467485]
[1724998848982,3.66498892,138.3,138.27,0.05467485]
[1724998853188,3.66498892,138.3,138.27,3.67047485]
[1724998858282,0.04978892,138.3,138.27,0.05467485]
[1724998858483,11.11,138.29,138.27,0.05467485]
[1724998858882,14.7254,138.29,138.27,0.05467485]
[1724998859988,14.7256,138.28,138.27,0.05467485]
[1724998860394,11.11,138.28,138.22,11.11]
[1724998860781,11.11,138.28,138.22,16.33]
[1724998861291,0.05471802,138.26,138.24,0.05098622]
[1724998863491,3.67091802,138.26,138.24,0.05098622]
[1724998863695,0.05471802,138.26,138.24,0.05098622]
[1724998863894,3.6164,138.25,138.24,0.05098622]
[1724998864087,11.11,138.21,138.17,5.22]
[1724998864292,14.7275,138.21,138.16,3.6185]
[1724998864489,11.11,138.21,138.15,5.22]
[1724998864684,11.11,138.21,138.14,11.11]
[1724998864985,11.16084304,138.19,138.16,0.05180626]
[1724998865388,0.05084304,138.19,138.16,0.05180626]
[1724998865999,0.05084304,138.19,138.16,3.67050626]
[1724998867191,0.05084304,138.19,138.17,3.6184]
[1724998871200,0.05084304,138.19,138.18,3.6182]
[1724998871899,0.05084304,138.19,138.17,3.6184]
[1724998872794,0.05084304,138.19,138.16,0.05180626]
[1724998872795,0.05084304,138.19,138.16,14.78050626]
[1724998872998,0.05084304,138.19,138.16,3.67050626]
[1724998874407,0.05084304,138.19,138.16,0.05180626]
[1724998875505,0.05084304,138.19,138.16,3.67050626]
[1724998877008,0.05084304,138.19,138.17,11.11]
[1724998890314,0.05084304,138.19,138.17,14.7284]
[1724998892422,0.05084304,138.19,138.18,14.7282]
[1724998896028,1.3975,138.26,138.21,3.6175]
[1724998896226,1.3975,138.26,138.22,11.11]
[1724998896931,0.05381958,138.25,138.23,0.05402624]
[1724998897132,3.67041958,138.25,138.23,0.05402624]
[1724998899232,0.05381958,138.25,138.23,0.05402624]
[1724998901233,3.67021958,138.25,138.23,0.05402624]
[1724998902131,3.6167,138.24,138.23,0.05402624]
[1724998903127,3.67041958,138.25,138.23,0.05402624]
[1724998905227,20.4097397,138.46,138.3,55.0]
[1724998905429,26.62381361,138.55,138.15,1.3089]
[1724998905430,89.62648625,138.72,138.45,77.33]
[1724998905631,89.62648625,138.72,138.46,28.92]
[1724998905832,89.62648625,138.72,138.58,11.11]
[1724998905833,11.11,138.67,138.58,11.11]
[1724998906033,89.62648625,138.72,138.45,62.54889657]
[1724998906234,0.04933974,138.6,138.57,0.0508531]
[1724998906538,0.05478386,138.6,138.57,0.0556058]
[1724998906943,6.02466305,138.6,138.58,16.57454827]
[1724998907141,6.02466305,138.6,138.59,16.57454827]
[1724998907333,0.02466305,138.6,138.59,16.57454827]
[1724998907831,0.02466305,138.6,138.59,25.56985563]
[1724998908037,0.02466305,138.6,138.59,16.57454827]
[1724998908742,0.02466305,138.6,138.59,8.69176631]
[1724998909048,0.02466305,138.6,138.59,8.68796157]
[1724998909641,0.02466305,138.6,138.59,2.31146157]
[1724998911044,0.02466305,138.6,138.57,0.0556058]
[1724998912342,0.02466305,138.6,138.57,3.6635058]
[1724998915352,0.02466305,138.6,138.57,0.0556058]
[1724998915643,3.68434343,138.61,138.57,0.0556058]
[1724998915644,6.0,138.59,138.57,0.0556058]
[1724998915848,35.973,138.62,138.57,3.6634058]
[1724998916051,3.52252258,138.61,138.57,3.6634058]
[1724998916252,6.0,138.6,138.57,3.6634058]
[1724998916453,3.52252258,138.61,138.57,3.6634058]
[1724998916649,6.05107622,138.6,138.58,3.6078]
[1724998916950,6.0,138.59,138.58,3.6078]
[1724998917253,1.46725816,138.61,138.58,3.6078]
[1724998917548,3.63868934,138.61,138.58,3.6078]
[1724998918055,3.69397651,138.61,138.58,3.6078]
[1724998918347,6.0,138.6,138.58,3.6078]
[1724998918548,3.69397651,138.61,138.58,3.6078]
[1724998918861,6.0,138.6,138.58,3.6078]
[1724998919150,3.69397651,138.61,138.58,3.6078]
[1724998919546,6.0,138.6,138.58,3.6078]
[1724998919741,3.69397651,138.61,138.58,3.6078]
[1724998920350,0.05528717,138.61,138.57,34.7056058]
[1724998920554,7.323,138.62,138.57,34.7056058]
[1724998920855,7.323,138.62,138.61,3.607]
[1724998921456,0.04710173,138.63,138.6,0.04785281]
[1724998921656,6.0,138.69,138.61,34.65]
[1724998921851,1.3655,138.71,138.63,34.65]
[1724998922049,6.0,138.7,138.63,34.65]
[1724998922256,6.0,138.7,138.69,3.6047]
[1724998922658,1.4151539,138.71,138.7,3.6047]
[1724998923055,7.4151539,138.71,138.7,3.6047]
[1724998923858,1.4151539,138.71,138.7,3.6047]
[1724998924060,0.0496539,138.71,138.7,3.6047]
[1724998925558,28.86,138.77,138.67,35.982]
[1724998925755,6.0,138.76,138.67,35.982]
[1724998925953,6.0,138.76,138.69,34.65]
[1724998926548,0.04268173,138.74,138.71,0.05089721]
[1724998926951,0.04268173,138.74,138.71,34.70089721]
[1724998927258,0.04268173,138.74,138.73,3.6039]
[1724998927959,6.0,138.79,138.77,3.6026]
[1724998928146,6.0,138.79,138.69,6.0]
[1724998928147,40.65,138.81,138.69,34.65]
[1724998928347,34.65,138.79,138.69,34.65]
[1724998928551,6.0,138.78,138.69,34.65]
[1724998928955,6.0,138.78,138.72,0.05453062]
[1724998929157,6.0,138.78,138.73,3.65532896]
[1724998929554,6.0,138.79,138.73,3.65532896]
[1724998929758,6.0,138.79,138.75,0.04938857]
[1724998930160,9.6023,138.79,138.75,0.04938857]
[1724998930355,7.1398081,138.79,138.75,0.04938857]
[1724998930565,6.0,138.78,138.75,0.04938857]
[1724998933364,9.6026,138.78,138.75,0.04938857]
[1724998933566,6.0,138.78,138.75,0.04938857]
[1724998933959,9.6027,138.78,138.75,0.04938857]
[1724998935555,9.17016392,138.78,138.75,0.04938857]
[1724998935759,6.1,138.77,138.75,0.04938857]
[1724998936165,7.18694805,138.78,138.75,0.04938857]
[1724998936368,6.1,138.77,138.68,27.69]
[1724998936564,6.1,138.76,138.68,27.69]
[1724998936756,6.1,138.76,138.71,3.6044]
[1724998936956,3.55650508,138.77,138.68,27.69]
[1724998937158,27.69,138.78,138.68,27.69]
[1724998937361,0.04805969,138.74,138.72,0.05159068]
[1724998942874,0.04805969,138.74,138.68,27.69]
[1724998942875,0.04805969,138.74,138.7,3.6045]
[1724998943764,0.04805969,138.74,138.71,0.04988007]
[1724998945375,27.69,138.73,138.71,0.04988007]
[1724998945576,3.38786919,138.72,138.71,0.04988007]
[1724998945767,3.10256049,138.72,138.71,0.04988007]
[1724998946878,3.604,138.73,138.71,0.04988007]
[1724998947177,1.36205969,138.74,138.71,0.04988007]
[1724998947766,7.46205969,138.74,138.71,0.04988007]
[1724998947965,1.36205969,138.74,138.71,0.04988007]
[1724998948177,0.04805969,138.74,138.71,0.04988007]
[1724998948375,0.04805969,138.74,138.71,27.73988007]
[1724998949067,0.04805969,138.74,138.71,0.04988007]
[1724998949474,3.6039,138.73,138.71,0.04988007]
[1724998949875,0.04805969,138.74,138.71,0.04988007]
[1724998950080,3.6039,138.73,138.71,0.04988007]
[1724998950776,6.1,138.72,138.71,0.04988007]
[1724998951073,6.1,138.73,138.71,0.04988007]
[1724998951473,9.75175969,138.74,138.71,0.04988007]
[1724998952075,6.14805969,138.74,138.71,0.04988007]
[1724998953971,0.04805969,138.74,138.71,0.04988007]
[1724998954477,3.65185969,138.74,138.71,0.04988007]
[1724998956373,9.75185969,138.74,138.71,0.04988007]
[1724998956775,3.65185969,138.74,138.71,0.04988007]
[1724998956966,9.75185969,138.74,138.71,0.04988007]
[1724998957169,3.65185969,138.74,138.71,0.04988007]
[1724998957571,9.75185969,138.74,138.71,0.04988007]
[1724998958071,3.6039,138.73,138.71,0.04988007]
[1724998958269,0.04805969,138.74,138.71,0.04988007]
[1724998958576,3.6041,138.73,138.71,0.04988007]
[1724998958771,6.1,138.72,138.71,0.04988007]
[1724998958971,3.6041,138.73,138.71,0.04988007]
[1724998959172,3.6042,138.72,138.71,0.04988007]
[1724998960476,9.7042,138.72,138.71,0.04988007]
[1724998961676,6.1,138.72,138.64,27.69]
[1724998961876,27.69,138.7,138.61,3.55335255]
[1724998962078,4.96166863,138.69,138.61,27.69]
[1724998962378,4.96166863,138.69,138.61,31.2968]
[1724998962379,3.6058,138.66,138.61,31.2968]
[1724998962579,9.7058,138.66,138.61,34.89341139]
[1724998962879,0.05018318,138.65,138.62,0.05072725]
[1724998963078,6.15018318,138.65,138.62,0.05072725]
[1724998963582,6.1,138.64,138.62,0.05072725]
[1724998963876,3.65618318,138.65,138.62,0.05072725]
[1724998964473,5.78,138.64,138.62,0.05072725]
[1724998964980,9.3863,138.64,138.62,0.05072725]
[1724998965378,5.78,138.64,138.62,0.05072725]
[1724998965586,9.3865,138.63,138.62,0.05072725]
[1724998965771,3.6065,138.63,138.62,0.05072725]
[1724998966174,9.3865,138.63,138.62,0.05072725]
[1724998966383,3.6065,138.63,138.62,0.05072725]
[1724998966677,9.3865,138.63,138.62,0.05072725]
[1724998967076,3.6065,138.63,138.62,0.05072725]
[1724998967586,9.3865,138.63,138.62,0.05072725]
[1724998968081,3.6065,138.63,138.62,0.05072725]
[1724998968472,9.3865,138.63,138.62,0.05072725]
[1724998968871,5.78,138.63,138.62,0.05072725]
[1724998969474,3.6063,138.64,138.62,0.05072725]
[1724998969673,5.78,138.63,138.62,0.05072725]
[1724998969878,3.6063,138.64,138.62,0.05072725]
[1724998970278,5.78,138.63,138.62,0.05072725]
[1724998970473,0.05018318,138.65,138.62,0.05072725]
[1724998970886,5.83018318,138.65,138.62,0.05072725]
[1724998971185,0.05018318,138.65,138.62,0.05072725]
[1724998971379,5.83018318,138.65,138.62,0.05072725]
[1724998972182,0.05018318,138.65,138.62,0.05072725]
[1724998972381,0.05018318,138.65,138.62,3.65732725]
[1724998975391,5.83018318,138.65,138.62,3.65732725]
[1724998976078,5.83018318,138.65,138.62,0.05072725]
[1724998976287,0.05018318,138.65,138.62,0.05072725]
[1724998976684,3.65638318,138.65,138.62,0.05072725]
[1724998976884,9.43638318,138.65,138.62,0.05072725]
[1724998978889,9.43638318,138.65,138.62,3.65742725]
[1724998979794,5.83018318,138.65,138.62,3.65742725]
[1724998979997,0.05018318,138.65,138.62,3.65742725]
[1724998980489,3.65618318,138.65,138.62,0.05072725]
[1724998980791,5.78,138.64,138.62,0.05072725]
[1724998980992,3.6065,138.63,138.62,0.05072725]
[1724998981189,9.3865,138.63,138.62,0.05072725]
[1724998984487,33.47,138.63,138.57,3.608]
[1724998984788,33.47,138.63,138.51,27.69]
[1724998984789,27.69,138.61,138.51,27.69]
[1724998985089,27.69,138.61,138.55,3.6086]
[1724998985090,3.6079,138.58,138.55,3.6086]
[1724998985593,3.6079,138.58,138.55,3.66173675]
[1724998985594,9.43927559,138.58,138.55,3.66173675]
[1724998985794,5.83137559,138.58,138.55,3.66173675]
[1724998985993,5.83137559,138.58,138.55,0.05313675]
[1724998986193,5.78,138.57,138.55,0.05313675]
[1724998986590,5.83137559,138.58,138.55,3.66153675]
[1724998988286,0.05137559,138.58,138.55,3.66153675]
[1724998988491,5.83137559,138.58,138.55,3.66153675]
[1724998989494,0.05137559,138.58,138.55,3.66153675]
[1724998990098,0.05137559,138.58,138.55,14.74153675]
[1724998991593,5.51137559,138.58,138.55,14.74153675]
[1724998992691,0.05137559,138.58,138.55,14.74153675]
[1724998993092,5.51137559,138.58,138.55,14.74153675]
[1724998993893,0.05137559,138.58,138.55,14.74153675]
[1724998994795,0.05137559,138.58,138.55,3.66153675]
[1724998994796,5.51137559,138.58,138.55,3.66153675]
[1724998994996,0.05137559,138.58,138.55,3.66153675]
[1724998995197,5.51137559,138.58,138.55,3.66153675]
[1724998995499,5.46,138.57,138.55,3.66153675]
[1724999001400,5.46,138.57,138.55,0.05313675]
[1724999002904,9.0682,138.57,138.55,0.05313675]
[1724999003697,3.6083,138.56,138.55,0.05313675]
[1724999005902,14.6883,138.56,138.55,0.05313675]
[1724999006909,3.609,138.54,138.5,1.4005]
[1724999007100,5.46,138.53,138.5,1.4005]
[1724999007302,3.609,138.54,138.5,4.9717739]
[1724999008006,0.05531334,138.53,138.51,0.04564654]
[1724999008302,0.05531334,138.53,138.51,3.65524654]
[1724999009600,0.05531334,138.53,138.52,14.6894]
[1724999012094,0.05531334,138.53,138.52,3.6094]
[1724999019003,0.05531334,138.53,138.51,3.65524654]
[1724999021204,0.05531334,138.53,138.52,3.6094]
[1724999023208,3.66441334,138.53,138.51,0.04564654]
[1724999023410,0.05531334,138.53,138.51,0.04564654]
[1724999025215,0.05531334,138.53,138.51,3.65514654]
[1724999027615,0.05531334,138.53,138.52,3.6094]
[1724999034313,0.05531334,138.53,138.51,3.65524654]
[1724999037013,0.05531334,138.53,138.51,0.04564654]
[1724999038325,0.05531334,138.53,138.51,3.65524654]
[1724999039820,0.05531334,138.53,138.51,0.04564654]
[1724999045429,0.05531334,138.53,138.51,3.65524654]
[1724999045630,0.05531334,138.53,138.51,2.35549594]
[1724999045829,3.6094,138.52,138.51,0.04564654]
[1724999048235,0.05531334,138.53,138.51,0.04564654]
[1724999048844,3.66441334,138.53,138.51,0.04564654]
[1724999050136,0.05531334,138.53,138.51,0.04564654]
[1724999051249,5.27531334,138.53,138.51,0.04564654]
[1724999052844,3.6094,138.52,138.51,0.04564654]
[1724999053647,5.22,138.52,138.51,0.04564654]
[1724999053950,0.05531334,138.53,138.51,0.04564654]
[1724999054149,0.05531334,138.53,138.51,11.12564654]
[1724999054749,0.05531334,138.53,138.52,3.6094]
[1724999055048,0.05531334,138.53,138.51,0.04564654]
[1724999055248,0.05531334,138.53,138.51,3.65514654]
[1724999055645,0.05531334,138.53,138.51,0.04564654]
[1724999056150,0.05531334,138.53,138.51,2.35554754]
[1724999056351,0.05531334,138.53,138.51,0.04564654]
[1724999058249,5.27531334,138.53,138.51,0.04564654]
[1724999058552,0.05531334,138.53,138.51,3.65524654]
[1724999059149,0.05531334,138.53,138.51,5.9651675]
[1724999059455,0.05531334,138.53,138.51,3.65524654]
[1724999059851,0.05531334,138.53,138.51,5.9651675]
[1724999060155,0.05531334,138.53,138.51,3.65524654]
[1724999060548,0.05531334,138.53,138.51,5.9651675]
[1724999060749,0.05531334,138.53,138.51,3.65524654]
[1724999061151,3.66451334,138.53,138.51,2.35554977]
[1724999061351,8.88451334,138.53,138.51,2.35556535]
[1724999061755,3.6094,138.52,138.51,2.35556535]
[1724999061953,5.27531334,138.53,138.51,0.04564654]
[1724999062261,5.27531334,138.53,138.51,2.35556535]
[1724999062453,5.27531334,138.53,138.51,0.04564654]
[1724999062757,8.88461334,138.53,138.51,2.35556535]
[1724999062955,3.66461334,138.53,138.51,0.04564654]
[1724999063253,3.66461334,138.53,138.51,2.35556535]
[1724999063454,3.66461334,138.53,138.51,0.04564654]
[1724999063644,8.88461334,138.53,138.51,2.35556535]
[1724999063851,0.05531334,138.53,138.51,14.73524654]
[1724999064049,0.05531334,138.53,138.51,11.12564654]
[1724999064249,0.05531334,138.53,138.52,2.30990471]
[1724999064550,0.05531334,138.53,138.51,11.12564654]
[1724999064751,0.05531334,138.53,138.51,14.73514654]
[1724999064944,0.05531334,138.53,138.52,2.30990102]
[1724999067954,0.05531334,138.53,138.51,3.65514654]
[1724999068561,0.05531334,138.53,138.52,2.30990149]
[1724999072453,0.05531334,138.53,138.52,5.91930149]
[1724999073156,0.05531334,138.53,138.52,2.30990149]
[1724999074164,0.05531334,138.53,138.51,3.65514654]
[1724999074759,0.05531334,138.53,138.52,2.30972061]
[1724999077464,0.05531334,138.53,138.51,0.04564654]
[1724999077970,0.05531334,138.53,138.52,2.30979248]
[1724999079270,3.66441334,138.53,138.52,2.30979248]
[1724999084167,3.66441334,138.53,138.51,0.04564654]
[1724999084561,3.66441334,138.53,138.52,2.3099998]
[1724999087486,3.6094,138.52,138.51,0.04564654]
[1724999088971,3.6094,138.52,138.51,2.355663]
[1724999094075,3.6094,138.52,138.51,0.04564654]
[1724999094785,3.6094,138.52,138.51,2.35568348]
[1724999095682,5.22,138.52,138.51,2.35568348]
[1724999097174,5.22,138.52,138.51,0.04564654]
[1724999097583,3.66461334,138.53,138.51,0.04564654]
[1724999097881,3.66461334,138.53,138.51,2.35566371]
[1724999098075,3.66461334,138.53,138.52,2.31001717]
[1724999100379,3.66461334,138.53,138.51,0.04564654]
[1724999100687,3.66461334,138.53,138.52,2.31001724]
[1724999100879,8.88461334,138.53,138.52,2.31001724]
[1724999101081,3.66461334,138.53,138.52,2.31001724]
[1724999101482,8.88461334,138.53,138.52,2.31001724]
[1724999101881,5.27531334,138.53,138.52,2.31001724]
[1724999102483,0.05531334,138.53,138.52,2.31001724]
[1724999102689,3.66461334,138.53,138.51,0.04564654]
[1724999103090,5.22,138.52,138.51,0.04564654]
[1724999103394,5.22,138.52,138.51,2.35566371]
[1724999103593,3.66461334,138.53,138.51,2.35566371]
[1724999103788,3.66461334,138.53,138.52,2.31001717]
[1724999103991,0.05531334,138.53,138.52,2.31001717]
[1724999104189,5.27531334,138.53,138.52,2.31001717]
[1724999105998,8.88441334,138.53,138.52,2.31000064]
[1724999109092,8.88441334,138.53,138.51,0.04564654]
[1724999109690,8.88441334,138.53,138.52,2.30998707]
[1724999110595,3.66441334,138.53,138.52,2.30998707]
[1724999112092,8.88441334,138.53,138.52,2.30998707]
[1724999112297,8.88441334,138.53,138.51,0.04564654]
[1724999112493,8.88441334,138.53,138.52,2.31001846]
[1724999112695,8.86441334,138.53,138.52,2.31001846]
[1724999114600,8.86441334,138.53,138.51,0.04564654]
[1724999114793,3.66441334,138.53,138.51,0.04564654]
[1724999114995,8.86441334,138.53,138.51,0.04564654]
[1724999115195,3.6094,138.52,138.51,0.04564654]
[1724999116094,8.86451334,138.53,138.51,0.04564654]
[1724999116398,5.25531334,138.53,138.51,0.04564654]
[1724999116597,0.05531334,138.53,138.51,11.12564654]
[1724999116898,0.05531334,138.53,138.51,0.04564654]
[1724999117708,0.05531334,138.53,138.52,3.6094]
[1724999122498,0.05531334,138.53,138.52,5.91917255]
[1724999124608,0.05531334,138.53,138.52,3.6094]
[1724999127810,3.62973655,138.62,138.52,55.4]
[1724999128002,16.28,138.63,138.57,11.08]
[1724999128205,16.28,138.63,138.56,3.55719956]
[1724999128504,11.08,138.62,138.56,11.08]
[1724999128708,0.04895568,138.6,138.58,0.04687984]
[1724999130608,0.04895568,138.6,138.59,2.3089047]
[1724999131217,0.04895568,138.6,138.58,0.04687984]
[1724999131410,0.04895568,138.6,138.58,3.65467984]
[1724999134106,0.04895568,138.6,138.59,3.6075]
[1724999134311,7.2049,138.65,138.58,11.12687984]
[1724999134511,2.0049,138.65,138.62,3.6066]
[1724999134704,2.0049,138.65,138.6,11.08]
[1724999134911,13.0849,138.65,138.6,11.08]
[1724999135313,11.08,138.64,138.58,11.08]
[1724999135611,11.08,138.64,138.61,0.05534508]
[1724999135612,0.04781108,138.63,138.61,0.05534508]
[1724999136310,0.04781108,138.63,138.61,11.13534508]
[1724999136911,0.04781108,138.63,138.62,3.6068]
[1724999140114,3.6052,138.68,138.61,11.13534508]
[1724999140319,3.6052,138.68,138.64,11.08]
[1724999140515,11.08,138.69,138.59,9.4103]
[1724999140728,3.6056,138.67,138.63,3.6065]
[1724999141213,11.13352582,138.66,138.64,0.04651464]
[1724999141515,11.08,138.65,138.64,0.04651464]
[1724999141814,14.686,138.65,138.64,0.04651464]
[1724999142617,3.606,138.65,138.64,0.04651464]
[1724999143517,3.65952582,138.66,138.64,0.04651464]
[1724999143921,0.05352582,138.66,138.64,0.04651464]
[1724999145115,3.606,138.65,138.64,0.04651464]
[1724999152417,14.686,138.65,138.64,0.04651464]
[1724999152621,3.606,138.65,138.64,0.04651464]
[1724999152822,14.686,138.65,138.64,0.04651464]
[1724999153224,19.886,138.65,138.64,0.04651464]
[1724999153427,14.686,138.65,138.64,0.04651464]
[1724999153627,19.886,138.65,138.64,0.04651464]
[1724999154019,14.686,138.65,138.64,0.04651464]
[1724999154219,8.806,138.65,138.64,0.04651464]
[1724999156320,19.886,138.65,138.64,0.04651464]
[1724999156530,3.6068,138.62,138.57,14.67121402]
[1724999157130,3.6068,138.62,138.58,3.6076]
[1724999157531,0.0462364,138.61,138.59,0.05226033]
[1724999159834,0.0462364,138.61,138.59,3.65956033]
[1724999160534,0.0462364,138.61,138.59,14.73956033]
[1724999161728,0.0462364,138.61,138.59,0.05226033]
[1724999162035,16.28,138.6,138.51,2.1269]
[1724999162239,11.08,138.57,138.51,11.08]
[1724999162430,3.6086,138.55,138.51,14.6894]
[1724999162935,16.28,138.57,138.49,5.5651139]
[1724999163136,16.28,138.57,138.52,0.05480609]
[1724999163137,0.05386942,138.54,138.52,0.05480609]
[1724999164032,3.66276942,138.54,138.52,0.05480609]
[1724999164228,0.05386942,138.54,138.52,0.05480609]
[1724999165133,3.6091,138.53,138.52,0.05480609]
[1724999174440,8.7891,138.53,138.52,0.05480609]
[1724999176539,19.8691,138.53,138.52,0.05480609]
[1724999180745,8.7891,138.53,138.52,0.05480609]
[1724999181748,3.6091,138.53,138.52,0.05480609]
[1724999182250,8.7891,138.53,138.52,0.05480609]
[1724999182446,3.6091,138.53,138.52,0.05480609]
[1724999183450,8.7891,138.53,138.52,0.05480609]
[1724999183755,3.6091,138.53,138.52,0.05480609]
[1724999184252,14.6891,138.53,138.52,0.05480609]
[1724999184452,3.6101,138.49,138.46,16.8529]
[1724999184947,3.6099,138.5,138.46,16.8529]
[1724999185348,3.6099,138.5,138.47,11.08]
[1724999185542,3.65767098,138.5,138.47,11.13237498]
[1724999187450,0.04777098,138.5,138.47,14.74287498]
[1724999187848,0.04777098,138.5,138.47,0.05237498]
[1724999188050,0.04777098,138.5,138.47,11.13237498]
[1724999188350,0.04777098,138.5,138.47,14.74297498]
[1724999191853,3.65767098,138.5,138.47,11.13237498]
[1724999194149,3.65767098,138.5,138.47,14.74307498]
[1724999199458,0.04777098,138.5,138.47,14.74307498]
[1724999201059,0.04777098,138.5,138.49,11.08]
[1724999201657,0.04777098,138.5,138.49,14.6901]
[1724999204765,0.04777098,138.5,138.49,3.6101]
[1724999204960,0.04777098,138.5,138.49,14.6901]
[1724999222376,0.04777098,138.5,138.49,17.00010075]
[1724999225380,3.6087,138.55,138.49,13.39000075]
[1724999225585,3.6087,138.55,138.46,55.9289]
[1724999225586,3.6084,138.56,138.51,11.08]
[1724999226173,0.04811928,138.55,138.52,3.65645167]
[1724999226582,3.65671928,138.55,138.52,3.65645167]
[1724999226885,14.73671928,138.55,138.52,0.04715167]
[1724999227178,11.08,138.53,138.52,0.04715167]
[1724999227586,0.04811928,138.55,138.52,0.04715167]
[1724999227881,11.08,138.54,138.52,0.04715167]
[1724999228287,3.6091,138.53,138.52,0.04715167]
[1724999229986,3.6096,138.51,138.5,2.31012964]
[1724999230183,11.08,138.51,138.46,2.31012964]
[1724999230387,11.08,138.52,138.47,2.31012964]
[1724999230585,3.6098,138.51,138.48,2.31012964]
[1724999230787,3.6098,138.51,138.49,2.31012964]
[1724999230986,3.66500394,138.51,138.5,2.31012964]
[1724999231682,3.66500394,138.51,138.49,0.04806724]
[1724999232089,3.66500394,138.51,138.5,2.31031078]
[1724999235183,3.66500394,138.51,138.49,0.04806724]
[1724999236088,3.66500394,138.51,138.5,2.31031051]
[1724999239190,14.74500394,138.51,138.5,2.31031051]
[1724999239391,3.6099,138.5,138.49,0.04806724]
[1724999239693,3.6099,138.5,138.49,2.35843372]
[1724999245603,3.6099,138.5,138.49,0.04806724]
[1724999246891,3.6107,138.47,138.44,3.6113]
[1724999247297,3.6107,138.47,138.43,14.6916]
[1724999247800,0.04975514,138.46,138.44,0.05529592]
[1724999248595,3.66065514,138.46,138.44,0.05529592]
[1724999249502,3.66065514,138.46,138.45,2.31088316]
[1724999256797,0.04975514,138.46,138.45,13.39088316]
[1724999259496,0.04975514,138.46,138.45,2.31088316]
[1724999259910,3.66065514,138.46,138.44,0.05529592]
[1724999260310,3.66065514,138.46,138.45,2.3108787]
[1724999262629,0.04975514,138.46,138.45,2.3108787]
[1724999263710,0.04975514,138.46,138.44,0.05529592]
[1724999263911,0.04975514,138.46,138.45,2.31086402]
[1724999264716,0.04975514,138.46,138.45,4.62174108]
[1724999265115,3.66065514,138.46,138.45,4.62174108]
[1724999265514,3.66065514,138.46,138.45,6.93262032]
[1724999266522,3.66065514,138.46,138.45,4.62174108]
[1724999267519,3.66065514,138.46,138.45,2.31086402]
[1724999267711,3.66065514,138.46,138.44,2.36619655]